fUSD/lending_fUSD_20260621
["ID","MTS","AMOUNT","RATE_DAILY","PERIOD"]
[425890864,1782024708000,-500.0,0.00029315,2]
[425890863,1782024708000,-500.0,0.00029315,2]
[425890866,1782024708000,-500.0,0.00029315,2]
[425890865,1782024708000,-500.0,0.00029315,2]
[425890877,1782024708000,-504.95,0.00029315,2]
[425890872,1782024708000,-616.34,0.00029315,2]
[425890878,1782024708000,-500.0,0.00029315,2]
[425890880,1782024708000,-612.64,0.00029315,2]
[425890879,1782024708000,-500.0,0.00029315,2]
[425890871,1782024708000,-500.0,0.00029315,2]
[425890876,1782024708000,-551.15,0.00029315,2]
[425890873,1782024708000,-553.12,0.00029315,2]
[425890870,1782024708000,-500.0,0.00029315,2]
[425890875,1782024708000,-788.18,0.00029315,2]
[425890874,1782024708000,-500.0,0.00029315,2]
[425890882,1782024708000,-500.0,0.00029315,2]
[425890884,1782024708000,-1658.06,0.00029315,2]
[425890892,1782024708000,-349.05026112,0.00029315,2]
[425890881,1782024708000,-500.0,0.00029315,2]
[425890883,1782024708000,-583.69,0.00029315,2]
[425890885,1782024708000,-661.33,0.00029315,2]
[425890887,1782024708000,-886.41,0.00029315,2]
[425890889,1782024708000,-500.0,0.00029315,2]
[425890868,1782024708000,-516.83,0.00029315,2]
[425890922,1782024708000,-500.0,0.00029315,2]
[425890919,1782024708000,-500.0,0.00029315,2]
[425890953,1782024708000,-500.56,0.00029315,2]
[425890954,1782024708000,-532.76,0.00029315,2]
[425890955,1782024708000,-533.53,0.00029315,2]
[425890963,1782024708000,-622.76,0.00029315,2]
[425890962,1782024708000,-500.0,0.00029315,2]
[425890959,1782024708000,-886.26,0.00029315,2]
[425890957,1782024708000,-500.0,0.00029315,2]
[425890961,1782024708000,-500.0,0.00029315,2]
[425890958,1782024708000,-880.39,0.00029315,2]
[425890956,1782024708000,-500.0,0.00029315,2]
[425890960,1782024708000,-500.0,0.00029315,2]
[425890965,1782024708000,-500.0,0.00029315,2]
[425890976,1782024708000,-500.0,0.00029315,2]
[425890975,1782024708000,-500.0,0.00029315,2]
[425890964,1782024708000,-500.0,0.00029315,2]
[425890966,1782024708000,-500.0,0.00029315,2]
[425890974,1782024708000,-669.81,0.00029315,2]
[425890972,1782024708000,-500.0,0.00029315,2]
[425890969,1782024708000,-3234.89,0.00029315,2]
[425890970,1782024708000,-622.33,0.00029315,2]
[425890967,1782024708000,-500.0,0.00029315,2]
[425890968,1782024708000,-500.0,0.00029315,2]
[425890971,1782024708000,-500.0,0.00029315,2]
[425890973,1782024708000,-530.26171101,0.00029315,2]
[425890977,1782024708000,-500.0,0.00029315,2]
[425890921,1782024708000,-151.99901319,0.00029315,2]
[425890978,1782024708000,-5195.03,0.00029315,2]
[425890952,1782024708000,-636.47,0.00029315,2]
[425890951,1782024708000,-847.98,0.00029315,2]
[425890979,1782024708000,-500.0,0.00029315,2]
[425890944,1782024708000,-500.0,0.00029315,2]
[425890946,1782024708000,-500.0,0.00029315,2]
[425890923,1782024708000,-2404.55,0.00029315,2]
[425890924,1782024708000,-500.0,0.00029315,2]
[425890935,1782024708000,-500.0,0.00029315,2]
[425890932,1782024708000,-500.0,0.00029315,2]
[425890925,1782024708000,-500.0,0.00029315,2]
[425890926,1782024708000,-500.0,0.00029315,2]
[425890929,1782024708000,-545.10862547,0.00029315,2]
[425890927,1782024708000,-610.54,0.00029315,2]
[425890928,1782024708000,-500.0,0.00029315,2]
[425890936,1782024708000,-159.28512404,0.00029315,2]
[425890937,1782024708000,-500.0,0.00029315,2]
[425890930,1782024708000,-500.0,0.00029315,2]
[425890917,1782024708000,-5137.66,0.00029315,2]
[425890934,1782024708000,-656.16,0.00029315,2]
[425890947,1782024708000,-626.28225907,0.00029315,2]
[425890948,1782024708000,-500.0,0.00029315,2]
[425890945,1782024708000,-1956.43,0.00029315,2]
[425890943,1782024708000,-501.16,0.00029315,2]
[425890931,1782024708000,-5681.37,0.00029315,2]
[425890942,1782024708000,-324.57729827,0.00029315,2]
[425890940,1782024708000,-2135.45,0.00029315,2]
[425890938,1782024708000,-500.0,0.00029315,2]
[425890950,1782024708000,-500.0,0.00029315,2]
[425890949,1782024708000,-166.78029795,0.00029315,2]
[425890939,1782024708000,-500.0,0.00029315,2]
[425890933,1782024708000,-582.5,0.00029315,2]
[425890941,1782024708000,-315.7385471,0.00029315,2]
[425891021,1782024709000,-500.0,0.00029315,2]
[425891020,1782024709000,-500.0,0.00029315,2]
[425891018,1782024709000,-597.51,0.00029315,2]
[425891016,1782024709000,-631.3,0.00029315,2]
[425891005,1782024709000,-500.0,0.00029315,2]
[425891015,1782024709000,-500.0,0.00029315,2]
[425891013,1782024709000,-542.61027294,0.00029315,2]
[425891014,1782024709000,-797.65,0.00029315,2]
[425891007,1782024709000,-951.86,0.00029315,2]
[425891011,1782024709000,-559.44,0.00029315,2]
[425891017,1782024709000,-500.0,0.00029315,2]
[425891022,1782024709000,-2244.17,0.00029315,2]
[425891026,1782024709000,-500.0,0.00029315,2]
[425891024,1782024709000,-500.0,0.00029315,2]
[425891023,1782024709000,-801.08,0.00029315,2]
[425891025,1782024709000,-500.0,0.00029315,2]
[425891028,1782024709000,-500.0,0.00029315,2]
[425891033,1782024709000,-4062.39,0.00029315,2]
[425891027,1782024709000,-500.0,0.00029315,2]
[425891030,1782024709000,-500.0,0.00029315,2]
[425891031,1782024709000,-903.03,0.00029315,2]
[425891032,1782024709000,-500.0,0.00029315,2]
[425891029,1782024709000,-1000.0,0.00029315,2]
[425891034,1782024709000,-954.13,0.00029315,2]
[425891006,1782024709000,-500.0,0.00029315,2]
[425891019,1782024709000,-607.73,0.00029315,2]
[425891009,1782024709000,-551.99,0.00029315,2]
[425890994,1782024709000,-500.0,0.00029315,2]
[425891010,1782024709000,-500.0,0.00029315,2]
[425890987,1782024709000,-429.45206764,0.00029315,2]
[425890982,1782024709000,-691.64,0.00029315,2]
[425890980,1782024709000,-500.0,0.00029315,2]
[425890981,1782024709000,-500.0,0.00029315,2]
[425890984,1782024709000,-546.78,0.00029315,2]
[425890983,1782024709000,-500.0,0.00029315,2]
[425890986,1782024709000,-500.0,0.00029315,2]
[425890985,1782024709000,-500.0,0.00029315,2]
[425890989,1782024709000,-500.0,0.00029315,2]
[425890988,1782024709000,-500.0,0.00029315,2]
[425890991,1782024709000,-680.65,0.00029315,2]
[425890990,1782024709000,-500.0,0.00029315,2]
[425890992,1782024709000,-700.2,0.00029315,2]
[425890993,1782024709000,-500.0,0.00029315,2]
[425890995,1782024709000,-1599.41,0.00029315,2]
[425890996,1782024709000,-1309.86,0.00029315,2]
[425890999,1782024709000,-500.0,0.00029315,2]
[425891000,1782024709000,-500.0,0.00029315,2]
[425890998,1782024709000,-772.18,0.00029315,2]
[425890997,1782024709000,-500.0,0.00029315,2]
[425891001,1782024709000,-765.84,0.00029315,2]
[425891004,1782024709000,-2642.89,0.00029315,2]
[425891003,1782024709000,-500.0,0.00029315,2]
[425891002,1782024709000,-500.0,0.00029315,2]
[425891008,1782024709000,-500.0,0.00029315,2]
[425891012,1782024709000,-500.0,0.00029315,2]
[425891036,1782024709000,-603.48,0.00029315,2]
[425891035,1782024709000,-904.48,0.00029315,2]
[425891041,1782024709000,-834.25,0.00029315,2]
[425891066,1782024709000,-500.0,0.00029315,2]
[425891081,1782024709000,-1089.42,0.00029315,2]
[425891071,1782024709000,-585.48,0.00029315,2]
[425891070,1782024709000,-500.0,0.00029315,2]
[425891072,1782024709000,-494.16600868,0.00029315,2]
[425891074,1782024709000,-924.41,0.00029315,2]
[425891073,1782024709000,-500.0,0.00029315,2]
[425891075,1782024709000,-500.0,0.00029315,2]
[425891076,1782024709000,-500.0,0.00029315,2]
[425891077,1782024709000,-1092.23,0.00029315,2]
[425891080,1782024709000,-614.61636643,0.00029315,2]
[425891079,1782024709000,-500.0,0.00029315,2]
[425891068,1782024709000,-7914.34,0.00029315,2]
[425891078,1782024709000,-583.57,0.00029315,2]
[425891093,1782024709000,-500.0,0.00029315,2]
[425891084,1782024709000,-500.0,0.00029315,2]
[425891082,1782024709000,-1561.52,0.00029315,2]
[425891085,1782024709000,-500.0,0.00029315,2]
[425891087,1782024709000,-635.35,0.00029315,2]
[425891091,1782024709000,-592.69,0.00029315,2]
[425891088,1782024709000,-500.0,0.00029315,2]
[425891086,1782024709000,-500.0,0.00029315,2]
[425891092,1782024709000,-500.0,0.00029315,2]
[425891089,1782024709000,-500.0,0.00029315,2]
[425891094,1782024709000,-2788.13,0.00029315,2]
[425891040,1782024709000,-555.21,0.00029315,2]
[425891083,1782024709000,-500.0,0.00029315,2]
[425891064,1782024709000,-896.34,0.00029315,2]
[425891090,1782024709000,-784.42,0.00029315,2]
[425891067,1782024709000,-6091.07,0.00029315,2]
[425891063,1782024709000,-500.0,0.00029315,2]
[425891042,1782024709000,-1143.03,0.00029315,2]
[425891037,1782024709000,-624.26,0.00029315,2]
[425891043,1782024709000,-500.0,0.00029315,2]
[425891038,1782024709000,-500.0,0.00029315,2]
[425891039,1782024709000,-809.55,0.00029315,2]
[425891056,1782024709000,-500.0,0.00029315,2]
[425891046,1782024709000,-500.0,0.00029315,2]
[425891057,1782024709000,-764.69,0.00029315,2]
[425891047,1782024709000,-500.0,0.00029315,2]
[425891045,1782024709000,-500.0,0.00029315,2]
[425891048,1782024709000,-500.0,0.00029315,2]
[425891050,1782024709000,-935.76,0.00029315,2]
[425891044,1782024709000,-566.74,0.00029315,2]
[425891051,1782024709000,-500.0,0.00029315,2]
[425891055,1782024709000,-500.0,0.00029315,2]
[425891065,1782024709000,-500.0,0.00029315,2]
[425891062,1782024709000,-817.63,0.00029315,2]
[425891060,1782024709000,-564.37,0.00029315,2]
[425891069,1782024709000,-3320.81,0.00029315,2]
[425891059,1782024709000,-500.0,0.00029315,2]
[425891061,1782024709000,-701.53,0.00029315,2]
[425891058,1782024709000,-750.17,0.00029315,2]
[425891052,1782024709000,-500.0,0.00029315,2]
[425891053,1782024709000,-500.0,0.00029315,2]
[425891049,1782024709000,-500.0,0.00029315,2]
[425891054,1782024709000,-793.1,0.00029315,2]
[425891121,1782024710000,-642.02365806,0.00029315,2]
[425891131,1782024710000,-1520.19,0.00029315,2]
[425891132,1782024710000,-500.0,0.00029315,2]
[425891120,1782024710000,-500.0,0.00029315,2]
[425891123,1782024710000,-500.0,0.00029315,2]
[425891122,1782024710000,-705.63,0.00029315,2]
[425891125,1782024710000,-827.57,0.00029315,2]
[425891124,1782024710000,-500.0,0.00029315,2]
[425891115,1782024710000,-500.0,0.00029315,2]
[425891129,1782024710000,-500.0,0.00029315,2]
[425891133,1782024710000,-617.88,0.00029315,2]
[425891130,1782024710000,-500.0,0.00029315,2]
[425891127,1782024710000,-500.0,0.00029315,2]
[425891128,1782024710000,-500.0,0.00029315,2]
[425891135,1782024710000,-500.0,0.00029315,2]
[425891134,1782024710000,-500.0,0.00029315,2]
[425891137,1782024710000,-3759.7,0.00029315,2]
[425891136,1782024710000,-903.13,0.00029315,2]
[425891118,1782024710000,-1447.03,0.00029315,2]
[425891138,1782024710000,-547.03,0.00029315,2]
[425891126,1782024710000,-500.0,0.00029315,2]
[425891114,1782024710000,-527.19,0.00029315,2]
[425891103,1782024710000,-500.0,0.00029315,2]
[425891116,1782024710000,-624.11,0.00029315,2]
[425891140,1782024710000,-196.72345773,0.00029356,60]
[425891095,1782024710000,-500.0,0.00029315,2]
[425891099,1782024710000,-678.31,0.00029315,2]
[425891106,1782024710000,-900.08,0.00029315,2]
[425891105,1782024710000,-500.0,0.00029315,2]
[425891102,1782024710000,-500.0,0.00029315,2]
[425891098,1782024710000,-500.0,0.00029315,2]
[425891100,1782024710000,-876.37,0.00029315,2]
[425891101,1782024710000,-453.85272572,0.00029315,2]
[425891117,1782024710000,-616.72,0.00029315,2]
[425891096,1782024710000,-500.0,0.00029315,2]
[425891104,1782024710000,-500.0,0.00029315,2]
[425891110,1782024710000,-1188.54,0.00029315,2]
[425891107,1782024710000,-500.0,0.00029315,2]
[425891108,1782024710000,-962.41,0.00029315,2]
[425891111,1782024710000,-500.0,0.00029315,2]
[425891109,1782024710000,-1058.21,0.00029315,2]
[425891112,1782024710000,-500.0,0.00029315,2]
[425891113,1782024710000,-300.0,0.00029315,2]
[425891119,1782024710000,-769.38,0.00029315,2]
[425891097,1782024710000,-500.0,0.00029315,2]
[425891141,1782024710000,-200.0,0.00029452,2]
[425891139,1782024710000,-1985.43,0.00029315,2]
[425891142,1782024710000,-328573.918898,0.000295,7]
[425891168,1782024710000,-712.54,0.00029589,2]
[425891171,1782024710000,-484.81575355,0.00029589,2]
[425891169,1782024710000,-500.0,0.00029589,2]
[425891166,1782024710000,-638.93,0.00029589,2]
[425891170,1782024710000,-500.0,0.00029589,2]
[425891172,1782024710000,-609.43866548,0.00029589,2]
[425891174,1782024710000,-500.0,0.00029589,2]
[425891175,1782024710000,-500.0,0.00029589,2]
[425891176,1782024710000,-500.0,0.00029589,2]
[425891167,1782024710000,-500.0,0.00029589,2]
[425891173,1782024710000,-500.0,0.00029589,2]
[425891180,1782024710000,-500.0,0.00029589,2]
[425891179,1782024710000,-500.0,0.00029589,2]
[425891183,1782024710000,-500.0,0.00029589,2]
[425891181,1782024710000,-500.0,0.00029589,2]
[425891187,1782024710000,-843.58,0.00029589,2]
[425891185,1782024710000,-1019.04,0.00029589,2]
[425891186,1782024710000,-922.89,0.00029589,2]
[425891182,1782024710000,-500.0,0.00029589,2]
[425891184,1782024710000,-500.0,0.00029589,2]
[425891178,1782024710000,-1481.08,0.00029589,2]
[425891165,1782024710000,-707.99,0.00029589,2]
[425891177,1782024710000,-512.63,0.00029589,2]
[425891160,1782024710000,-500.0,0.00029589,2]
[425891163,1782024710000,-1533.91,0.00029589,2]
[425891144,1782024710000,-500.0,0.00029589,2]
[425891148,1782024710000,-1001.24,0.00029589,2]
[425891153,1782024710000,-421.08290103,0.00029589,2]
[425891146,1782024710000,-500.0,0.00029589,2]
[425891145,1782024710000,-500.0,0.00029589,2]
[425891143,1782024710000,-150.0,0.00029534,2]
[425891151,1782024710000,-560.02,0.00029589,2]
[425891149,1782024710000,-500.0,0.00029589,2]
[425891152,1782024710000,-500.0,0.00029589,2]
[425891147,1782024710000,-500.0,0.00029589,2]
[425891155,1782024710000,-702.44,0.00029589,2]
[425891154,1782024710000,-500.0,0.00029589,2]
[425891164,1782024710000,-531.66,0.00029589,2]
[425891161,1782024710000,-727.3,0.00029589,2]
[425891156,1782024710000,-500.0,0.00029589,2]
[425891158,1782024710000,-301.63283105,0.00029589,2]
[425891159,1782024710000,-1117.63,0.00029589,2]
[425891157,1782024710000,-855.16,0.00029589,2]
[425891150,1782024710000,-586.67,0.00029589,2]
[425891162,1782024710000,-751.5,0.00029589,2]
[425891213,1782024711000,-723.19,0.00029589,2]
[425891226,1782024711000,-521.63348714,0.00029589,2]
[425891235,1782024711000,-500.0,0.00029589,2]
[425891234,1782024711000,-500.0,0.00029589,2]
[425891224,1782024711000,-1259.48,0.00029589,2]
[425891215,1782024711000,-500.0,0.00029589,2]
[425891218,1782024711000,-577.26,0.00029589,2]
[425891217,1782024711000,-500.0,0.00029589,2]
[425891216,1782024711000,-500.0,0.00029589,2]
[425891223,1782024711000,-500.0,0.00029589,2]
[425891220,1782024711000,-626.02,0.00029589,2]
[425891225,1782024711000,-208.02725226,0.00029589,2]
[425891247,1782024711000,-500.0,0.00029589,2]
[425891228,1782024711000,-500.0,0.00029589,2]
[425891229,1782024711000,-500.0,0.00029589,2]
[425891232,1782024711000,-500.0,0.00029589,2]
[425891231,1782024711000,-500.0,0.00029589,2]
[425891233,1782024711000,-545.11,0.00029589,2]
[425891240,1782024711000,-500.0,0.00029589,2]
[425891236,1782024711000,-500.0,0.00029589,2]
[425891242,1782024711000,-500.0,0.00029589,2]
[425891241,1782024711000,-500.0,0.00029589,2]
[425891245,1782024711000,-545.14435114,0.00029589,2]
[425891237,1782024711000,-653.36,0.00029589,2]
[425891221,1782024711000,-500.0,0.00029589,2]
[425891227,1782024711000,-500.0,0.00029589,2]
[425891212,1782024711000,-500.0,0.00029589,2]
[425891189,1782024711000,-500.0,0.00029589,2]
[425891222,1782024711000,-500.0,0.00029589,2]
[425891188,1782024711000,-500.0,0.00029589,2]
[425891190,1782024711000,-500.0,0.00029589,2]
[425891192,1782024711000,-500.0,0.00029589,2]
[425891194,1782024711000,-1069.36,0.00029589,2]
[425891244,1782024711000,-500.0,0.00029589,2]
[425891193,1782024711000,-500.0,0.00029589,2]
[425891191,1782024711000,-657.07,0.00029589,2]
[425891196,1782024711000,-500.0,0.00029589,2]
[425891195,1782024711000,-500.0,0.00029589,2]
[425891197,1782024711000,-817.18,0.00029589,2]
[425891198,1782024711000,-500.0,0.00029589,2]
[425891200,1782024711000,-500.0,0.00029589,2]
[425891210,1782024711000,-500.0,0.00029589,2]
[425891199,1782024711000,-1000.0,0.00029589,2]
[425891202,1782024711000,-500.0,0.00029589,2]
[425891201,1782024711000,-435.76672318,0.00029589,2]
[425891204,1782024711000,-500.0,0.00029589,2]
[425891209,1782024711000,-500.0,0.00029589,2]
[425891206,1782024711000,-500.0,0.00029589,2]
[425891205,1782024711000,-500.0,0.00029589,2]
[425891203,1782024711000,-500.0,0.00029589,2]
[425891208,1782024711000,-500.0,0.00029589,2]
[425891207,1782024711000,-500.0,0.00029589,2]
[425891214,1782024711000,-1043.26,0.00029589,2]
[425891211,1782024711000,-500.0,0.00029589,2]
[425891219,1782024711000,-635.87,0.00029589,2]
[425891246,1782024711000,-1117.29,0.00029589,2]
[425891230,1782024711000,-500.0,0.00029589,2]
[425891238,1782024711000,-549.75,0.00029589,2]
[425891274,1782024711000,-614.5,0.00029589,2]
[425891279,1782024711000,-500.0,0.00029589,2]
[425891275,1782024711000,-500.0,0.00029589,2]
[425891277,1782024711000,-500.0,0.00029589,2]
[425891280,1782024711000,-832.03,0.00029589,2]
[425891283,1782024711000,-500.0,0.00029589,2]
[425891284,1782024711000,-500.0,0.00029589,2]
[425891282,1782024711000,-500.0,0.00029589,2]
[425891281,1782024711000,-593.6,0.00029589,2]
[425891285,1782024711000,-500.0,0.00029589,2]
[425891289,1782024711000,-500.0,0.00029589,2]
[425891286,1782024711000,-691.64,0.00029589,2]
[425891272,1782024711000,-500.0,0.00029589,2]
[425891291,1782024711000,-830.76,0.00029589,2]
[425891287,1782024711000,-500.0,0.00029589,2]
[425891290,1782024711000,-582.2,0.00029589,2]
[425891297,1782024711000,-282.76289234,0.00029589,2]
[425891295,1782024711000,-500.0,0.00029589,2]
[425891296,1782024711000,-500.0,0.00029589,2]
[425891292,1782024711000,-541.59,0.00029589,2]
[425891293,1782024711000,-500.0,0.00029589,2]
[425891299,1782024711000,-500.0,0.00029589,2]
[425891298,1782024711000,-500.0,0.00029589,2]
[425891300,1782024711000,-500.0,0.00029589,2]
[425891301,1782024711000,-529.31562822,0.00029589,2]
[425891294,1782024711000,-500.0,0.00029589,2]
[425891288,1782024711000,-500.0,0.00029589,2]
[425891273,1782024711000,-558.93,0.00029589,2]
[425891239,1782024711000,-500.0,0.00029589,2]
[425891276,1782024711000,-500.0,0.00029589,2]
[425891278,1782024711000,-503.92,0.00029589,2]
[425891243,1782024711000,-500.0,0.00029589,2]
[425891249,1782024711000,-500.0,0.00029589,2]
[425891248,1782024711000,-500.0,0.00029589,2]
[425891250,1782024711000,-500.0,0.00029589,2]
[425891251,1782024711000,-500.0,0.00029589,2]
[425891254,1782024711000,-839.97,0.00029589,2]
[425891253,1782024711000,-197.93970866,0.00029589,2]
[425891255,1782024711000,-642.15,0.00029589,2]
[425891302,1782024711000,-500.0,0.00029589,2]
[425891256,1782024711000,-500.0,0.00029589,2]
[425891252,1782024711000,-719.15,0.00029589,2]
[425891259,1782024711000,-500.0,0.00029589,2]
[425891257,1782024711000,-545.47,0.00029589,2]
[425891261,1782024711000,-500.0,0.00029589,2]
[425891269,1782024711000,-500.0,0.00029589,2]
[425891270,1782024711000,-769.91,0.00029589,2]
[425891268,1782024711000,-500.0,0.00029589,2]
[425891267,1782024711000,-500.0,0.00029589,2]
[425891265,1782024711000,-500.0,0.00029589,2]
[425891266,1782024711000,-1096.81,0.00029589,2]
[425891264,1782024711000,-500.0,0.00029589,2]
[425891271,1782024711000,-654.53,0.00029589,2]
[425891263,1782024711000,-712.59,0.00029589,2]
[425891262,1782024711000,-500.0,0.00029589,2]
[425891258,1782024711000,-591.13,0.00029589,2]
[425891260,1782024711000,-729.31,0.00029589,2]
[425891342,1782024712000,-500.0,0.00029589,2]
[425891353,1782024712000,-650.02,0.00029589,2]
[425891352,1782024712000,-695.39,0.00029589,2]
[425891336,1782024712000,-500.0,0.00029589,2]
[425891333,1782024712000,-500.0,0.00029589,2]
[425891338,1782024712000,-500.0,0.00029589,2]
[425891340,1782024712000,-984.14,0.00029589,2]
[425891337,1782024712000,-726.74,0.00029589,2]
[425891334,1782024712000,-500.0,0.00029589,2]
[425891343,1782024712000,-500.0,0.00029589,2]
[425891339,1782024712000,-500.0,0.00029589,2]
[425891350,1782024712000,-914.48,0.00029589,2]
[425891355,1782024712000,-649.55,0.00029589,2]
[425891341,1782024712000,-500.0,0.00029589,2]
[425891344,1782024712000,-1788.46,0.00029589,2]
[425891347,1782024712000,-500.0,0.00029589,2]
[425891349,1782024712000,-913.08,0.00029589,2]
[425891346,1782024712000,-500.0,0.00029589,2]
[425891345,1782024712000,-500.0,0.00029589,2]
[425891348,1782024712000,-1276.27,0.00029589,2]
[425891354,1782024712000,-670.3,0.00029589,2]
[425891359,1782024712000,-500.0,0.00029589,2]
[425891358,1782024712000,-3892.29,0.00029589,2]
[425891360,1782024712000,-500.0,0.00029589,2]
[425891330,1782024712000,-500.0,0.00029589,2]
[425891351,1782024712000,-500.0,0.00029589,2]
[425891331,1782024712000,-500.0,0.00029589,2]
[425891326,1782024712000,-500.0,0.00029589,2]
[425891328,1782024712000,-500.0,0.00029589,2]
[425891356,1782024712000,-1345.31,0.00029589,2]
[425891305,1782024712000,-1282.4,0.00029589,2]
[425891304,1782024712000,-500.0,0.00029589,2]
[425891307,1782024712000,-534.9,0.00029589,2]
[425891311,1782024712000,-331.36923759,0.00029589,2]
[425891306,1782024712000,-554.19,0.00029589,2]
[425891308,1782024712000,-1074.74,0.00029589,2]
[425891312,1782024712000,-500.0,0.00029589,2]
[425891313,1782024712000,-500.0,0.00029589,2]
[425891309,1782024712000,-500.0,0.00029589,2]
[425891310,1782024712000,-697.74,0.00029589,2]
[425891314,1782024712000,-626.03,0.00029589,2]
[425891335,1782024712000,-415.3145345,0.00029589,2]
[425891320,1782024712000,-704.63,0.00029589,2]
[425891325,1782024712000,-500.0,0.00029589,2]
[425891316,1782024712000,-675.27,0.00029589,2]
[425891323,1782024712000,-500.0,0.00029589,2]
[425891324,1782024712000,-527.56,0.00029589,2]
[425891322,1782024712000,-500.0,0.00029589,2]
[425891317,1782024712000,-524.71,0.00029589,2]
[425891319,1782024712000,-762.37,0.00029589,2]
[425891318,1782024712000,-500.0,0.00029589,2]
[425891327,1782024712000,-876.08,0.00029589,2]
[425891321,1782024712000,-743.19,0.00029589,2]
[425891332,1782024712000,-575.75,0.00029589,2]
[425891329,1782024712000,-859.84,0.00029589,2]
[425891315,1782024712000,-567.17,0.00029589,2]
[425891303,1782024712000,-1228.81,0.00029589,2]
[425891361,1782024712000,-500.0,0.00029589,2]
[425891364,1782024712000,-579.31070562,0.00029589,2]
[425891389,1782024712000,-500.0,0.00029589,2]
[425891392,1782024712000,-504.95,0.00029589,2]
[425891395,1782024712000,-612.64,0.00029589,2]
[425891397,1782024712000,-519.49774849,0.00029589,2]
[425891396,1782024712000,-500.0,0.00029589,2]
[425891394,1782024712000,-500.0,0.00029589,2]
[425891399,1782024712000,-1658.06,0.00029589,2]
[425891401,1782024712000,-794.85,0.00029589,2]
[425891402,1782024712000,-886.41,0.00029589,2]
[425891406,1782024712000,-500.0,0.00029589,2]
[425891403,1782024712000,-500.0,0.00029589,2]
[425891400,1782024712000,-661.33,0.00029589,2]
[425891391,1782024712000,-551.15,0.00029589,2]
[425891404,1782024712000,-500.0,0.00029589,2]
[425891405,1782024712000,-500.0,0.00029589,2]
[425891408,1782024712000,-500.0,0.00029589,2]
[425891409,1782024712000,-500.0,0.00029589,2]
[425891412,1782024712000,-765.86,0.00029589,2]
[425891413,1782024712000,-500.0,0.00029589,2]
[425891414,1782024712000,-500.0,0.00029589,2]
[425891410,1782024712000,-658.55,0.00029589,2]
[425891415,1782024712000,-712.17,0.00029589,2]
[425891411,1782024712000,-6762.29,0.00029589,2]
[425891418,1782024712000,-394.542949,0.00029589,2]
[425891416,1782024712000,-422.9519128,0.00029589,2]
[425891363,1782024712000,-500.0,0.00029589,2]
[425891407,1782024712000,-500.0,0.00029589,2]
[425891393,1782024712000,-500.0,0.00029589,2]
[425891417,1782024712000,-749.43,0.00029589,2]
[425891387,1782024712000,-616.34,0.00029589,2]
[425891390,1782024712000,-788.18,0.00029589,2]
[425891362,1782024712000,-500.0,0.00029589,2]
[425891366,1782024712000,-898.16,0.00029589,2]